[Event "*** Titled Tuesday Blitz"]
[Site "Chess.com"]
[Date "2020.12.29"]
[Round "3"]
[White "Chessmatus"]
[Black "kuban1991"]
[Result "1/2-1/2"]
[WhiteElo "2448"]
[BlackElo "2760"]
[TimeControl "180+1"]
[EndTime "10:31:24 PST"]
[Termination "Game drawn by stalemate"]

1. e4 {[%clk 0:03:00.9]} 1... e6 {[%clk 0:02:58]} 2. d4 {[%clk 0:03:00.8]} 2...
d5 {[%clk 0:02:58.9]} 3. e5 {[%clk 0:03:01.4]} 3... c5 {[%clk 0:02:58.5]} 4. c3
{[%clk 0:03:02]} 4... Nc6 {[%clk 0:02:58.9]} 5. Nf3 {[%clk 0:03:02.6]} 5... Bd7
{[%clk 0:02:59.5]} 6. a3 {[%clk 0:03:02.8]} 6... Qb6 {[%clk 0:02:59.6]} 7. b4
{[%clk 0:03:00.6]} 7... c4 {[%clk 0:02:59.8]} 8. a4 {[%clk 0:02:54.4]} 8... f5
{[%clk 0:02:58.8]} 9. Be2 {[%clk 0:02:45.8]} 9... Nh6 {[%clk 0:02:58.1]} 10.
Bxh6 {[%clk 0:02:45.3]} 10... gxh6 {[%clk 0:02:59]} 11. Nbd2 {[%clk 0:02:45.3]}
11... O-O-O {[%clk 0:02:58.4]} 12. Rb1 {[%clk 0:02:45]} 12... Rg8 {[%clk
0:02:58.3]} 13. g3 {[%clk 0:02:34.8]} 13... Be7 {[%clk 0:02:58.1]} 14. Nf1
{[%clk 0:02:33.6]} 14... Rdf8 {[%clk 0:02:58.1]} 15. Ne3 {[%clk 0:02:23]} 15...
f4 {[%clk 0:02:57.1]} 16. Ng2 {[%clk 0:02:23.1]} 16... Bg5 {[%clk 0:02:45.7]}
17. h4 {[%clk 0:02:07.4]} 17... fxg3 {[%clk 0:02:44.7]} 18. hxg5 {[%clk
0:02:07.4]} 18... gxf2+ {[%clk 0:02:45.6]} 19. Kxf2 {[%clk 0:01:45.2]} 19...
hxg5 {[%clk 0:02:41.9]} 20. Ke1 {[%clk 0:01:45]} 20... g4 {[%clk 0:02:41.4]} 21.
Nfh4 {[%clk 0:01:45.3]} 21... g3 {[%clk 0:02:20.6]} 22. Nf3 {[%clk 0:01:37.2]}
22... Rg7 {[%clk 0:02:14]} 23. Qd2 {[%clk 0:01:33.3]} 23... Rgf7 {[%clk
0:02:06.4]} 24. Rf1 {[%clk 0:01:23.1]} 24... Ne7 {[%clk 0:01:55.6]} 25. Ra1
{[%clk 0:00:58.8]} 25... Qd8 {[%clk 0:01:49.1]} 26. Kd1 {[%clk 0:00:55.6]} 26...
Nf5 {[%clk 0:01:46.7]} 27. Kc1 {[%clk 0:00:54.3]} 27... Qe8 {[%clk 0:01:46.2]}
28. b5 {[%clk 0:00:51.5]} 28... h5 {[%clk 0:01:46.2]} 29. Kb2 {[%clk 0:00:50.2]}
29... Rh7 {[%clk 0:01:43.1]} 30. Nfh4 {[%clk 0:00:42.3]} 30... Nxh4 {[%clk
0:01:24.7]} 31. Nxh4 {[%clk 0:00:41.7]} 31... Rg8 {[%clk 0:01:17.9]} 32. Rf4
{[%clk 0:00:26.7]} 32... Bxb5 {[%clk 0:01:14.2]} 33. axb5 {[%clk 0:00:20.2]}
33... Qxb5+ {[%clk 0:01:15.1]} 34. Kc1 {[%clk 0:00:20]} 34... g2 {[%clk
0:01:15.6]} 35. Nxg2 {[%clk 0:00:15.6]} 35... Rxg2 {[%clk 0:01:16.5]} 36. Rf8+
{[%clk 0:00:14.1]} 36... Kc7 {[%clk 0:01:16.8]} 37. Rb1 {[%clk 0:00:13.7]} 37...
Qa4 {[%clk 0:01:10.5]} 38. Rf1 {[%clk 0:00:07.1]} 38... Qa3+ {[%clk 0:01:04]}
39. Qb2 {[%clk 0:00:06]} 39... Qxb2+ {[%clk 0:01:04.1]} 40. Rxb2 {[%clk
0:00:06.9]} 40... h4 {[%clk 0:01:02.4]} 41. Bf3 {[%clk 0:00:06.9]} 41... Rg3
{[%clk 0:00:58.9]} 42. Rbf2 {[%clk 0:00:06.6]} 42... h3 {[%clk 0:00:58.4]} 43.
Kd2 {[%clk 0:00:06.7]} 43... b5 {[%clk 0:00:54.9]} 44. Ke2 {[%clk 0:00:06.6]}
44... a5 {[%clk 0:00:54.6]} 45. Rb1 {[%clk 0:00:05.9]} 45... Kb6 {[%clk
0:00:53.4]} 46. Bh1 {[%clk 0:00:05.3]} 46... Rxc3 {[%clk 0:00:52.3]} 47. Rf6
{[%clk 0:00:05.9]} 47... Re7 {[%clk 0:00:52.2]} 48. Bxd5 {[%clk 0:00:05.2]}
48... b4 {[%clk 0:00:47.4]} 49. Bxe6 {[%clk 0:00:05]} 49... Kb5 {[%clk
0:00:44.4]} 50. d5 {[%clk 0:00:04.2]} 50... Rc2+ {[%clk 0:00:42.4]} 51. Ke3
{[%clk 0:00:04.3]} 51... h2 {[%clk 0:00:35.4]} 52. d6 {[%clk 0:00:04.8]} 52...
Rh7 {[%clk 0:00:35.4]} 53. Rh1 {[%clk 0:00:04.8]} 53... b3 {[%clk 0:00:33.7]}
54. d7 {[%clk 0:00:05.1]} 54... Rc3+ {[%clk 0:00:34.2]} 55. Ke4 {[%clk
0:00:04.7]} 55... Rd3 {[%clk 0:00:34.3]} 56. Rf4 {[%clk 0:00:01.9]} 56... b2
{[%clk 0:00:32.8]} 57. Kf5 {[%clk 0:00:02]} 57... Rdxd7 {[%clk 0:00:27.7]} 58.
Bxc4+ {[%clk 0:00:02.3]} 58... Kc5 {[%clk 0:00:26.1]} 59. e6 {[%clk 0:00:02.5]}
59... Rd4 {[%clk 0:00:23.1]} 60. Rxd4 {[%clk 0:00:02.7]} 60... Kxd4 {[%clk
0:00:24]} 61. Ba2 {[%clk 0:00:03.1]} 61... Kc5 {[%clk 0:00:18.4]} 62. Kf6 {[%clk
0:00:03.5]} 62... Kd6 {[%clk 0:00:18.7]} 63. Rd1+ {[%clk 0:00:03.9]} 63... Kc5
{[%clk 0:00:14.4]} 64. e7 {[%clk 0:00:04.8]} 64... Rh6+ {[%clk 0:00:14.1]} 65.
Kg7 {[%clk 0:00:04.4]} 65... h1=Q {[%clk 0:00:12.8]} 66. Rxh1 {[%clk 0:00:04.2]}
66... Rxh1 {[%clk 0:00:13.7]} 67. e8=Q {[%clk 0:00:05.1]} 67... Rg1+ {[%clk
0:00:14]} 68. Kh7 {[%clk 0:00:04.8]} 68... Rh1+ {[%clk 0:00:12.3]} 69. Kg6
{[%clk 0:00:05.1]} 69... b1=Q+ {[%clk 0:00:13.1]} 70. Bxb1 {[%clk 0:00:04.9]}
70... Rxb1 {[%clk 0:00:14]} 71. Qe5+ {[%clk 0:00:05.4]} 71... Kb6 {[%clk
0:00:11.8]} 72. Qd6+ {[%clk 0:00:05.4]} 72... Ka7 {[%clk 0:00:08.9]} 73. Qd4+
{[%clk 0:00:05.8]} 73... Rb6+ {[%clk 0:00:09.2]} 74. Kf7 {[%clk 0:00:06.4]}
74... Ka6 {[%clk 0:00:09.7]} 75. Ke7 {[%clk 0:00:06.9]} 75... Rb4 {[%clk
0:00:09.8]} 76. Qc5 {[%clk 0:00:06.2]} 76... Rb5 {[%clk 0:00:09.2]} 77. Qc6+
{[%clk 0:00:05.9]} 77... Rb6 {[%clk 0:00:09.7]} 78. Qc4+ {[%clk 0:00:06.2]}
78... Ka7 {[%clk 0:00:06.5]} 79. Kd7 {[%clk 0:00:06.7]} 79... Rb7+ {[%clk
0:00:06.7]} 80. Kc6 {[%clk 0:00:06.8]} 80... Rb6+ {[%clk 0:00:07]} 81. Kc5
{[%clk 0:00:07.2]} 81... Rb7 {[%clk 0:00:07.2]} 82. Qe6 {[%clk 0:00:07.2]} 82...
Rc7+ {[%clk 0:00:05.7]} 83. Kb5 {[%clk 0:00:07]} 83... Kb7 {[%clk 0:00:06.6]}
84. Kxa5 {[%clk 0:00:07]} 84... Ka7 {[%clk 0:00:06.4]} 85. Qb6+ {[%clk
0:00:06.8]} 85... Ka8 {[%clk 0:00:06.8]} 86. Qh6 {[%clk 0:00:07.2]} 86... Ka7
{[%clk 0:00:05.8]} 87. Qf8 {[%clk 0:00:07.4]} 87... Rb7 {[%clk 0:00:05.1]} 88.
Qc8 {[%clk 0:00:07.9]} 88... Rb5+ {[%clk 0:00:03.4]} 89. Ka4 {[%clk 0:00:06.9]}
89... Rb8 {[%clk 0:00:03.8]} 90. Qc5+ {[%clk 0:00:06.7]} 90... Ka6 {[%clk
0:00:03.9]} 91. Qa5+ {[%clk 0:00:06.4]} 91... Kb7 {[%clk 0:00:04]} 92. Qd5+
{[%clk 0:00:07.3]} 92... Ka7 {[%clk 0:00:04.1]} 93. Ka5 {[%clk 0:00:07.8]} 93...
Rb7 {[%clk 0:00:03.8]} 94. Qd6 {[%clk 0:00:06.9]} 94... Rb8 {[%clk 0:00:02.9]}
95. Qc7+ {[%clk 0:00:04.8]} 95... Rb7 {[%clk 0:00:03]} 96. Qc6 {[%clk
0:00:05.4]} 96... Kb8 {[%clk 0:00:03.1]} 97. Ka6 {[%clk 0:00:04.2]} 97... Ra7+
{[%clk 0:00:03.5]} 98. Kb6 {[%clk 0:00:04.4]} 98... Ra6+ {[%clk 0:00:03.4]} 99.
Kxa6 {[%clk 0:00:04.9]} 1/2-1/2

[Event "*** Titled Tuesday Blitz"]
[Site "Chess.com"]
[Date "2020.12.29"]
[Round "4"]
[White "Nuvas"]
[Black "anon102030"]
[Result "0-1"]
[WhiteElo "2497"]
[BlackElo "2708"]
[TimeControl "180+1"]
[EndTime "10:32:47 PST"]
[Termination "anon102030 won by resignation"]

1. d4 {[%clk 0:02:58.8]} 1... Nf6 {[%clk 0:02:59.5]} 2. c4 {[%clk 0:02:58.6]}
2... e5 {[%clk 0:02:59.7]} 3. dxe5 {[%clk 0:02:58.8]} 3... Ng4 {[%clk
0:02:59.7]} 4. Nf3 {[%clk 0:02:59.5]} 4... Nc6 {[%clk 0:02:58.6]} 5. Bf4 {[%clk
0:03:00.2]} 5... Bb4+ {[%clk 0:02:57.7]} 6. Nc3 {[%clk 0:03:00.9]} 6... Qe7
{[%clk 0:02:58.5]} 7. Qd5 {[%clk 0:03:00.9]} 7... Bxc3+ {[%clk 0:02:54.6]} 8.
bxc3 {[%clk 0:03:01.8]} 8... Qa3 {[%clk 0:02:54.7]} 9. Rc1 {[%clk 0:03:01.8]}
9... f6 {[%clk 0:02:52.8]} 10. exf6 {[%clk 0:02:57.5]} 10... Nxf6 {[%clk
0:02:53.7]} 11. Qd1 {[%clk 0:02:49.5]} 11... d6 {[%clk 0:02:53]} 12. e3 {[%clk
0:02:49.6]} 12... Bf5 {[%clk 0:02:46.7]} 13. Bd3 {[%clk 0:02:47.8]} 13... Bxd3
{[%clk 0:02:41.3]} 0-1

[Event "*** Titled Tuesday Blitz"]
[Site "Chess.com"]
[Date "2020.12.29"]
[Round "4"]
[White "TregubovP"]
[Black "seorobert1971"]
[Result "1-0"]
[WhiteElo "2594"]
[BlackElo "2749"]
[TimeControl "180+1"]
[EndTime "10:33:00 PST"]
[Termination "TregubovP won by resignation"]

1. e4 {[%clk 0:03:00.9]} 1... c6 {[%clk 0:03:00.2]} 2. Nf3 {[%clk 0:02:58.7]}
2... d5 {[%clk 0:03:01.1]} 3. Nc3 {[%clk 0:02:59.2]} 3... Nf6 {[%clk 0:03:00.9]}
4. e5 {[%clk 0:02:57.5]} 4... Ne4 {[%clk 0:03:00.9]} 5. Ne2 {[%clk 0:02:49]}
5... Bg4 {[%clk 0:02:59.6]} 6. Ng3 {[%clk 0:02:43.9]} 6... Ng5 {[%clk
0:02:53.9]} 7. Be2 {[%clk 0:02:43.1]} 7... Nxf3+ {[%clk 0:02:53.7]} 8. Bxf3
{[%clk 0:02:43.3]} 8... Bxf3 {[%clk 0:02:53.8]} 9. Qxf3 {[%clk 0:02:43.9]} 9...
e6 {[%clk 0:02:54.1]} 10. O-O {[%clk 0:02:42.9]} 10... Nd7 {[%clk 0:02:53.8]}
11. d4 {[%clk 0:02:42.2]} 11... Be7 {[%clk 0:02:52.4]} 12. Nh5 {[%clk 0:02:42]}
12... g6 {[%clk 0:02:47.8]} 13. Ng7+ {[%clk 0:02:35.9]} 1-0

[Event "*** Titled Tuesday Blitz"]
[Site "Chess.com"]
[Date "2020.12.29"]
[Round "4"]
[White "ShapkinAnatoliy"]
[Black "AniJak"]
[Result "1-0"]
[WhiteElo "2709"]
[BlackElo "2356"]
[TimeControl "180+1"]
[EndTime "10:34:21 PST"]
[Termination "ShapkinAnatoliy won by resignation"]

1. d4 {[%clk 0:02:59.1]} 1... Nf6 {[%clk 0:03:00.1]} 2. c4 {[%clk 0:02:56.7]}
2... c6 {[%clk 0:03:00]} 3. Nc3 {[%clk 0:02:55.7]} 3... d5 {[%clk 0:03:00.1]} 4.
cxd5 {[%clk 0:02:55.7]} 4... cxd5 {[%clk 0:02:59.7]} 5. Nf3 {[%clk 0:02:56.2]}
5... Nc6 {[%clk 0:02:59.1]} 6. Bf4 {[%clk 0:02:56.6]} 6... a6 {[%clk 0:02:59.3]}
7. e3 {[%clk 0:02:56.8]} 7... e6 {[%clk 0:02:59.6]} 8. Bd3 {[%clk 0:02:56.3]}
8... Be7 {[%clk 0:02:58.3]} 9. h3 {[%clk 0:02:48.6]} 9... O-O {[%clk 0:02:57.2]}
10. O-O {[%clk 0:02:38.2]} 10... b5 {[%clk 0:02:57.1]} 11. a4 {[%clk 0:02:37.9]}
11... b4 {[%clk 0:02:56.2]} 12. Nb1 {[%clk 0:02:38.4]} 12... Bd7 {[%clk
0:02:44.7]} 13. Nbd2 {[%clk 0:02:36.5]} 13... Na5 {[%clk 0:02:26.5]} 14. Qe2
{[%clk 0:02:35.2]} 14... Qb6 {[%clk 0:02:21.4]} 15. Rfc1 {[%clk 0:02:32.9]}
15... Ne4 {[%clk 0:02:14.7]} 16. Bc7 {[%clk 0:02:31]} 16... Qb7 {[%clk
0:02:04.8]} 17. Bxa5 {[%clk 0:02:29.3]} 17... Nxd2 {[%clk 0:01:57.9]} 18. Nxd2
{[%clk 0:02:20]} 18... f5 {[%clk 0:01:54.4]} 19. Rc7 {[%clk 0:02:18.1]} 1-0

[Event "*** Titled Tuesday Blitz"]
[Site "Chess.com"]
[Date "2020.12.29"]
[Round "4"]
[White "Eternauta2400"]
[Black "BAS8892"]
[Result "0-1"]
[WhiteElo "2428"]
[BlackElo "2637"]
[TimeControl "180+1"]
[EndTime "10:34:32 PST"]
[Termination "BAS8892 won by resignation"]

1. d4 {[%clk 0:03:00.9]} 1... d5 {[%clk 0:02:59.8]} 2. c4 {[%clk 0:03:01.2]}
2... c6 {[%clk 0:03:00.1]} 3. cxd5 {[%clk 0:03:00.4]} 3... cxd5 {[%clk 0:03:01]}
4. Nc3 {[%clk 0:03:01.1]} 4... Nc6 {[%clk 0:03:00.1]} 5. Bf4 {[%clk 0:02:59.5]}
5... Nf6 {[%clk 0:02:59.9]} 6. e3 {[%clk 0:02:58.4]} 6... Bg4 {[%clk 0:02:59.4]}
7. Qb3 {[%clk 0:02:54.2]} 7... Na5 {[%clk 0:02:59.1]} 8. Qa4+ {[%clk 0:02:50.9]}
8... Bd7 {[%clk 0:02:58.4]} 9. Qc2 {[%clk 0:02:50.8]} 9... Rc8 {[%clk
0:02:57.7]} 10. Nf3 {[%clk 0:02:46.8]} 10... e6 {[%clk 0:02:57.4]} 11. Bd3
{[%clk 0:02:44.3]} 11... a6 {[%clk 0:02:57.4]} 12. O-O {[%clk 0:02:41.2]} 12...
Be7 {[%clk 0:02:56.7]} 13. Rac1 {[%clk 0:02:36.4]} 13... O-O {[%clk 0:02:56.2]}
14. Qb1 {[%clk 0:02:35.6]} 14... b5 {[%clk 0:02:55.3]} 15. Ne2 {[%clk
0:02:26.6]} 15... h6 {[%clk 0:02:50.6]} 16. Rxc8 {[%clk 0:02:22.6]} 16... Qxc8
{[%clk 0:02:50.7]} 17. Rc1 {[%clk 0:02:23.5]} 17... Qa8 {[%clk 0:02:42.3]} 18.
Ne5 {[%clk 0:02:24.4]} 18... Rc8 {[%clk 0:02:37.6]} 19. f3 {[%clk 0:02:19.3]}
19... Be8 {[%clk 0:02:36.8]} 20. Bg3 {[%clk 0:02:12.2]} 20... Nc4 {[%clk
0:02:36.1]} 21. Kf2 {[%clk 0:02:07.1]} 21... a5 {[%clk 0:02:29.6]} 22. b3 {[%clk
0:02:04]} 22... Nxe5 {[%clk 0:02:16.4]} 23. Rxc8 {[%clk 0:02:04.9]} 23... Nxd3+
{[%clk 0:02:14.5]} 0-1

[Event "*** Titled Tuesday Blitz"]
[Site "Chess.com"]
[Date "2020.12.29"]
[Round "4"]
[White "dozer80"]
[Black "Deepweb2020"]
[Result "1-0"]
[WhiteElo "2614"]
[BlackElo "2361"]
[TimeControl "180+1"]
[EndTime "10:34:38 PST"]
[Termination "dozer80 won by resignation"]

1. e4 {[%clk 0:03:00.9]} 1... e5 {[%clk 0:02:59.9]} 2. Nf3 {[%clk 0:03:00.9]}
2... Nc6 {[%clk 0:02:59]} 3. Bb5 {[%clk 0:03:01.5]} 3... a6 {[%clk 0:02:58.9]}
4. Ba4 {[%clk 0:03:01.9]} 4... Nf6 {[%clk 0:02:58.6]} 5. O-O {[%clk 0:03:00.9]}
5... b5 {[%clk 0:02:59.2]} 6. Bb3 {[%clk 0:03:00.6]} 6... Bc5 {[%clk 0:03:00.1]}
7. a4 {[%clk 0:03:00.4]} 7... Rb8 {[%clk 0:02:58]} 8. c3 {[%clk 0:03:00.3]} 8...
d6 {[%clk 0:02:51.6]} 9. d4 {[%clk 0:03:00.3]} 9... Bb6 {[%clk 0:02:49]} 10.
axb5 {[%clk 0:03:00.7]} 10... axb5 {[%clk 0:02:48.6]} 11. Na3 {[%clk 0:03:01.3]}
11... O-O {[%clk 0:02:45.8]} 12. Nxb5 {[%clk 0:03:00.9]} 12... Bg4 {[%clk
0:02:45.5]} 13. Be3 {[%clk 0:02:57.7]} 13... Ne7 {[%clk 0:02:16.5]} 14. dxe5
{[%clk 0:02:34.3]} 14... Bxe3 {[%clk 0:01:58.4]} 15. exf6 {[%clk 0:02:33.9]}
15... Bxf2+ {[%clk 0:01:48.2]} 16. Rxf2 {[%clk 0:02:34.8]} 16... gxf6 {[%clk
0:01:40.5]} 17. Nbd4 {[%clk 0:02:32.5]} 17... Ng6 {[%clk 0:01:39.4]} 18. h3
{[%clk 0:02:30.1]} 18... Bd7 {[%clk 0:01:39.1]} 19. Nf5 {[%clk 0:02:21.4]} 19...
Qe7 {[%clk 0:01:37.1]} 20. Nxe7+ {[%clk 0:02:21]} 1-0

[Event "*** Titled Tuesday Blitz"]
[Site "Chess.com"]
[Date "2020.12.29"]
[Round "4"]
[White "Jadeit90"]
[Black "paulrusan"]
[Result "0-1"]
[WhiteElo "2343"]
[BlackElo "2239"]
[TimeControl "180+1"]
[EndTime "10:34:38 PST"]
[Termination "paulrusan won by resignation"]

1. g3 {[%clk 0:02:58.1]} 1... c5 {[%clk 0:02:58.5]} 2. Bg2 {[%clk 0:02:59]} 2...
Nc6 {[%clk 0:02:58.6]} 3. c3 {[%clk 0:02:59.9]} 3... Nf6 {[%clk 0:02:57.7]} 4.
Nf3 {[%clk 0:03:00.8]} 4... g6 {[%clk 0:02:57.7]} 5. d4 {[%clk 0:03:01]} 5... d5
{[%clk 0:02:53.5]} 6. O-O {[%clk 0:03:00.9]} 6... Bg7 {[%clk 0:02:53.6]} 7. Ne5
{[%clk 0:02:59.4]} 7... Qb6 {[%clk 0:02:50.9]} 8. Nxc6 {[%clk 0:02:59.1]} 8...
bxc6 {[%clk 0:02:50.3]} 9. Nd2 {[%clk 0:02:55.9]} 9... cxd4 {[%clk 0:02:49.4]}
10. cxd4 {[%clk 0:02:55.9]} 10... Qxd4 {[%clk 0:02:49]} 11. Qc2 {[%clk
0:02:55.2]} 11... Bd7 {[%clk 0:02:48.3]} 12. Nf3 {[%clk 0:02:54.6]} 12... Qb6
{[%clk 0:02:47.3]} 13. Be3 {[%clk 0:02:53.7]} 13... Qa6 {[%clk 0:02:45.2]} 14.
Ne5 {[%clk 0:02:47]} 14... O-O {[%clk 0:02:43.1]} 15. Nxd7 {[%clk 0:02:45.4]}
15... Nxd7 {[%clk 0:02:42.7]} 16. Rfc1 {[%clk 0:02:43.6]} 16... Rfc8 {[%clk
0:02:42]} 17. a3 {[%clk 0:02:40.7]} 17... e6 {[%clk 0:02:34.3]} 18. Rab1 {[%clk
0:02:28.5]} 18... c5 {[%clk 0:02:34.4]} 19. Bd2 {[%clk 0:02:21]} 19... Qxe2
{[%clk 0:02:26.3]} 20. Re1 {[%clk 0:02:18.3]} 20... Qh5 {[%clk 0:02:20.7]} 21.
h4 {[%clk 0:02:19.2]} 21... c4 {[%clk 0:02:13.6]} 22. Bf4 {[%clk 0:02:14.9]}
22... Nc5 {[%clk 0:02:04.8]} 23. Rbd1 {[%clk 0:02:10.2]} 23... Nd3 {[%clk
0:02:04.1]} 24. Rxd3 {[%clk 0:02:10.3]} 24... cxd3 {[%clk 0:02:03.9]} 25. Qxd3
{[%clk 0:02:11.2]} 25... Qf5 {[%clk 0:02:00.9]} 0-1

[Event "*** Titled Tuesday Blitz"]
[Site "Chess.com"]
[Date "2020.12.29"]
[Round "4"]
[White "MumLookatMeNow"]
[Black "Rsnr"]
[Result "0-1"]
[WhiteElo "2516"]
[BlackElo "2797"]
[TimeControl "180+1"]
[EndTime "10:35:03 PST"]
[Termination "Rsnr won by resignation"]

1. e4 {[%clk 0:03:00.9]} 1... c6 {[%clk 0:03:00.4]} 2. d4 {[%clk 0:02:57.8]}
2... d5 {[%clk 0:03:01.3]} 3. e5 {[%clk 0:02:58.2]} 3... Bf5 {[%clk 0:03:01.5]}
4. h4 {[%clk 0:02:57.6]} 4... h5 {[%clk 0:03:01.7]} 5. Bg5 {[%clk 0:02:57.2]}
5... Qb6 {[%clk 0:03:01.6]} 6. Bd3 {[%clk 0:02:57.6]} 6... Qxd4 {[%clk
0:03:02.1]} 7. Nf3 {[%clk 0:02:56.8]} 7... Qg4 {[%clk 0:03:02.8]} 8. Bxf5 {[%clk
0:02:57.2]} 8... Qxf5 {[%clk 0:03:03.7]} 9. O-O {[%clk 0:02:57.4]} 9... f6
{[%clk 0:03:03.5]} 10. c4 {[%clk 0:02:44.5]} 10... fxg5 {[%clk 0:03:03.8]} 11.
c5 {[%clk 0:02:44.4]} 11... g4 {[%clk 0:02:46.8]} 12. Nd4 {[%clk 0:02:38.7]}
12... Qg6 {[%clk 0:02:32]} 13. e6 {[%clk 0:02:34.8]} 13... Na6 {[%clk
0:02:25.8]} 14. b4 {[%clk 0:01:57.7]} 14... Nc7 {[%clk 0:02:24.6]} 15. Re1
{[%clk 0:01:54.6]} 15... Nh6 {[%clk 0:02:14.3]} 16. Re5 {[%clk 0:01:39.3]} 16...
Qf6 {[%clk 0:02:12.2]} 17. Qe2 {[%clk 0:01:34.4]} 17... g6 {[%clk 0:02:12.6]}
0-1

[Event "*** Titled Tuesday Blitz"]
[Site "Chess.com"]
[Date "2020.12.29"]
[Round "4"]
[White "pichonazo"]
[Black "Logman74"]
[Result "0-1"]
[WhiteElo "2497"]
[BlackElo "2373"]
[TimeControl "180+1"]
[EndTime "10:35:22 PST"]
[Termination "Logman74 won by resignation"]

1. e4 {[%clk 0:03:00.9]} 1... c5 {[%clk 0:02:58.6]} 2. c3 {[%clk 0:03:00.3]}
2... d5 {[%clk 0:02:58.4]} 3. exd5 {[%clk 0:02:59.5]} 3... Qxd5 {[%clk 0:02:59]}
4. d4 {[%clk 0:02:59.3]} 4... Nf6 {[%clk 0:02:58.9]} 5. Nf3 {[%clk 0:02:59.7]}
5... Nc6 {[%clk 0:02:58.8]} 6. Be3 {[%clk 0:02:54.4]} 6... cxd4 {[%clk
0:02:57.8]} 7. Nxd4 {[%clk 0:02:53.8]} 7... Nxd4 {[%clk 0:02:57.3]} 8. Qxd4
{[%clk 0:02:54.4]} 8... Qxd4 {[%clk 0:02:56.8]} 9. Bxd4 {[%clk 0:02:55.3]} 9...
e6 {[%clk 0:02:56.8]} 10. Nd2 {[%clk 0:02:55.2]} 10... Bd6 {[%clk 0:02:56.5]}
11. Nc4 {[%clk 0:02:54.8]} 11... Bc7 {[%clk 0:02:56]} 12. Ke2 {[%clk 0:02:54.7]}
12... O-O {[%clk 0:02:55.9]} 13. f3 {[%clk 0:02:50.8]} 13... Nd5 {[%clk
0:02:53.4]} 14. Kf2 {[%clk 0:02:47.5]} 14... Bd7 {[%clk 0:02:52.7]} 15. Be5
{[%clk 0:02:46.1]} 15... Bd8 {[%clk 0:02:48.6]} 16. Bd3 {[%clk 0:02:35.4]} 16...
f6 {[%clk 0:02:43.8]} 17. Bd6 {[%clk 0:02:32.6]} 17... Re8 {[%clk 0:02:43.3]}
18. Rad1 {[%clk 0:02:31.5]} 18... b5 {[%clk 0:02:41.2]} 19. Nd2 {[%clk 0:02:26]}
19... Bb6+ {[%clk 0:02:40]} 20. Kg3 {[%clk 0:02:25.1]} 20... Ne3 {[%clk
0:02:30.9]} 21. Rde1 {[%clk 0:02:24]} 21... Rad8 {[%clk 0:02:25.4]} 22. Bf4
{[%clk 0:02:09.4]} 22... Nd5 {[%clk 0:02:09.3]} 23. Nb3 {[%clk 0:02:03.2]} 23...
Nxf4 {[%clk 0:02:03.8]} 24. Kxf4 {[%clk 0:02:04.1]} 24... Bf2 {[%clk 0:02:02.7]}
25. Kg4 {[%clk 0:01:40.9]} 25... e5+ {[%clk 0:01:58.9]} 26. Bf5 {[%clk
0:01:40.2]} 26... h5+ {[%clk 0:01:52.6]} 0-1

[Event "*** Titled Tuesday Blitz"]
[Site "Chess.com"]
[Date "2020.12.29"]
[Round "4"]
[White "BulletMercenary"]
[Black "Agibileg"]
[Result "1/2-1/2"]
[WhiteElo "2348"]
[BlackElo "2525"]
[TimeControl "180+1"]
[EndTime "10:35:30 PST"]
[Termination "Game drawn by repetition"]

1. e4 {[%clk 0:03:00.9]} 1... c5 {[%clk 0:02:57.6]} 2. d4 {[%clk 0:03:00.6]}
2... cxd4 {[%clk 0:02:57.1]} 3. c3 {[%clk 0:03:01.2]} 3... dxc3 {[%clk
0:02:56.9]} 4. Nxc3 {[%clk 0:03:02.1]} 4... g6 {[%clk 0:02:55.5]} 5. Qd4 {[%clk
0:03:01.1]} 5... Nf6 {[%clk 0:02:55.2]} 6. e5 {[%clk 0:02:56.5]} 6... Nc6 {[%clk
0:02:53.9]} 7. Qf4 {[%clk 0:02:57]} 7... Nh5 {[%clk 0:02:52.9]} 8. Qe4 {[%clk
0:02:54.6]} 8... d6 {[%clk 0:02:46.4]} 9. g4 {[%clk 0:02:47.9]} 9... Ng7 {[%clk
0:02:41.3]} 10. exd6 {[%clk 0:02:21.8]} 10... Qxd6 {[%clk 0:02:40.7]} 11. Nb5
{[%clk 0:02:19.6]} 11... Qd8 {[%clk 0:02:28.6]} 12. Bf4 {[%clk 0:02:00.4]} 12...
Ne6 {[%clk 0:02:28.9]} 13. Rd1 {[%clk 0:01:58.9]} 13... Qa5+ {[%clk 0:02:28]}
14. Bd2 {[%clk 0:01:58.3]} 14... Qb6 {[%clk 0:02:17.1]} 15. Be3 {[%clk
0:01:47.7]} 15... Qa5+ {[%clk 0:02:15.1]} 16. Bd2 {[%clk 0:01:47.7]} 16... Qb6
{[%clk 0:01:51.4]} 17. Be3 {[%clk 0:01:06]} 17... Qa5+ {[%clk 0:01:50.2]} 18.
Bd2 {[%clk 0:01:05.7]} 1/2-1/2

[Event "*** Titled Tuesday Blitz"]
[Site "Chess.com"]
[Date "2020.12.29"]
[Round "4"]
[White "bylavochka"]
[Black "lamomiablanca"]
[Result "0-1"]
[WhiteElo "2133"]
[BlackElo "2306"]
[TimeControl "180+1"]
[EndTime "10:35:33 PST"]
[Termination "lamomiablanca won by resignation"]

1. e4 {[%clk 0:03:00.9]} 1... c5 {[%clk 0:02:58.2]} 2. Nf3 {[%clk 0:02:57.3]}
2... Nc6 {[%clk 0:02:55.7]} 3. d4 {[%clk 0:02:58.2]} 3... cxd4 {[%clk
0:02:55.8]} 4. Nxd4 {[%clk 0:02:56.8]} 4... g6 {[%clk 0:02:54]} 5. c4 {[%clk
0:02:55.6]} 5... Nf6 {[%clk 0:02:52.9]} 6. Nc3 {[%clk 0:02:53]} 6... d6 {[%clk
0:02:49.5]} 7. f3 {[%clk 0:02:51.8]} 7... Nxd4 {[%clk 0:02:41.2]} 8. Qxd4 {[%clk
0:02:52.7]} 8... Bg7 {[%clk 0:02:40.9]} 9. Bg5 {[%clk 0:02:31]} 9... O-O {[%clk
0:02:38]} 10. Qe3 {[%clk 0:02:29.9]} 10... Qa5 {[%clk 0:02:28.3]} 11. Rc1 {[%clk
0:02:27.1]} 11... Be6 {[%clk 0:02:18.2]} 12. Be2 {[%clk 0:02:22.1]} 12... Rfc8
{[%clk 0:02:13.5]} 13. b3 {[%clk 0:02:21.3]} 13... b5 {[%clk 0:02:09.2]} 14. Qd2
{[%clk 0:01:30]} 14... bxc4 {[%clk 0:02:01.7]} 15. Nd5 {[%clk 0:01:28.8]} 15...
Qxd2+ {[%clk 0:01:55]} 16. Kxd2 {[%clk 0:01:28.7]} 16... Bxd5 {[%clk 0:01:52.8]}
17. exd5 {[%clk 0:01:26]} 17... cxb3 {[%clk 0:01:49.8]} 18. Bxf6 {[%clk
0:01:20]} 18... Bxf6 {[%clk 0:01:47.1]} 19. axb3 {[%clk 0:01:19.7]} 19... Bg5+
{[%clk 0:01:46.6]} 0-1